bitfinex-derivatives/quotes_BTCF0:USTF0_20250411
["timestamp","ask_amount","ask_price","bid_price","bid_amount"]
[1744364985173,0.1563354,82220.0,82219.0,0.1895834]
[1744364986986,0.1217354,82220.0,82219.0,0.1895834]
[1744364987186,0.1216954,82220.0,82219.0,0.1895834]
[1744364987391,0.1217354,82220.0,82219.0,0.1895834]
[1744364989483,0.1556354,82220.0,82219.0,0.0678865]
[1744364989874,0.1556354,82220.0,82219.0,0.0004865]
[1744364989875,0.1874354,82220.0,82219.0,0.0004865]
[1744364990576,0.1555954,82220.0,82219.0,0.0004865]
[1744364990975,0.2397154,82220.0,82219.0,0.1221834]
[1744364991181,0.2397154,82220.0,82219.0,0.1892834]
[1744364991381,0.1217354,82220.0,82219.0,0.1892834]
[1744364991585,0.2058154,82220.0,82219.0,0.1892834]
[1744364991791,0.2058554,82220.0,82219.0,0.1892834]
[1744364992182,0.2058554,82220.0,82219.0,0.0675865]
[1744364992183,0.2058154,82220.0,82219.0,0.0675865]
[1744364992380,0.2388554,82220.0,82219.0,0.0675865]
[1744364992791,0.2709554,82220.0,82219.0,0.0675865]
[1744364993603,0.2709554,82220.0,82219.0,0.0004865]
[1744364996687,0.1868354,82220.0,82219.0,0.0004865]
[1744364996893,0.2709554,82220.0,82219.0,0.0004865]
[1744364998391,0.1216969,82219.0,82218.0,0.00018235]
[1744364998589,0.1550969,82219.0,82218.0,0.00018235]
[1744364998795,0.2225969,82219.0,82218.0,0.00018235]
[1744365000890,0.1548969,82219.0,82218.0,0.00018235]
[1744365001089,0.2390169,82219.0,82218.0,0.00018235]
[1744365001282,0.2390569,82219.0,82218.0,0.00018235]
[1744365001687,0.2390569,82219.0,82218.0,0.06718235]
[1744365001898,0.1217117,82209.0,82208.0,0.1217127]
[1744365003200,0.1535117,82209.0,82208.0,0.1217127]
[1744365003600,0.1535117,82209.0,82208.0,0.1564127]
[1744365006006,0.1535117,82209.0,82208.0,0.0347]
[1744365006703,0.1535117,82209.0,82208.0,0.0689]
[1744365007196,0.1535117,82209.0,82208.0,0.1906132]
[1744365007997,0.1535117,82209.0,82208.0,0.0689]
[1744365009000,0.1535117,82209.0,82208.0,0.1906132]
[1744365009197,0.00018235,82217.0,82216.0,0.1217013]
[1744365009407,0.00018235,82217.0,82216.0,0.4825013]
[1744365010099,0.12192215,82217.0,82216.0,0.4825013]
[1744365011502,0.00022235,82217.0,82216.0,0.4825013]
[1744365011807,0.1216952,82221.0,82220.0,0.1216954]
[1744365012004,0.1825394,82223.0,82222.0,0.1216924]
[1744365012310,0.1825794,82223.0,82222.0,0.1216924]
[1744365013107,4e-05,82223.0,82222.0,0.1216924]
[1744365013504,0.0608426,82227.0,82225.0,0.1216865]
[1744365013702,0.0608426,82227.0,82226.0,0.5149865]
[1744365014901,0.0608426,82227.0,82226.0,0.0325]
[1744365015705,0.0608426,82227.0,82226.0,0.1004]
[1744365015905,0.0608426,82227.0,82226.0,0.2220865]
[1744365016106,0.0608426,82227.0,82226.0,0.5828865]
[1744365016306,0.0608411,82229.0,82228.0,0.1216836]
[1744365016697,0.0608811,82229.0,82228.0,0.1216836]
[1744365017301,0.121685,82227.0,82226.0,0.4612]
[1744365017603,0.121685,82227.0,82226.0,0.4287]
[1744365018206,0.188485,82227.0,82226.0,0.4287]
[1744365019110,0.188485,82227.0,82226.0,0.3942]
[1744365019306,0.1216969,82219.0,82218.0,0.00018235]
[1744365019612,0.4824969,82219.0,82218.0,0.00018235]
[1744365020209,0.5500969,82219.0,82218.0,0.00018235]
[1744365021102,0.0608465,82222.0,82218.0,0.36098235]
[1744365021413,0.1216954,82220.0,82219.0,0.1272477]
[1744365021605,0.1216954,82220.0,82219.0,0.1618477]
[1744365021901,4e-05,82220.0,82219.0,0.2226969]
[1744365022105,0.1217354,82220.0,82219.0,0.2226969]
[1744365022713,0.1217354,82220.0,82219.0,0.1880969]
[1744365025711,0.1550354,82220.0,82219.0,0.1880969]
[1744365027114,0.1216969,82219.0,82218.0,0.36098235]
[1744365027316,0.1559969,82219.0,82218.0,0.36098235]
[1744365029620,0.1559969,82219.0,82218.0,0.00018235]
[1744365030225,0.1559969,82219.0,82218.0,0.12188075]
[1744365030721,0.03434,82219.0,82218.0,0.12188075]
[1744365031123,0.1559969,82219.0,82218.0,0.18728075]
[1744365031324,0.1560369,82219.0,82218.0,0.18728075]
[1744365031830,0.1560369,82219.0,82218.0,0.00018235]
[1744365032222,0.1560369,82219.0,82218.0,0.12188075]
[1744365032625,0.0608471,82221.0,82220.0,0.1216954]
[1744365033230,0.0608471,82221.0,82220.0,0.1876954]
[1744365034720,0.0608471,82221.0,82220.0,0.5484954]
[1744365040430,0.0960471,82221.0,82220.0,0.3608]
[1744365040631,0.0608471,82221.0,82220.0,0.4824954]
[1744365040843,0.1216928,82222.0,82221.0,0.1216939]
[1744365041134,0.1216928,82222.0,82221.0,0.1873939]
[1744365041326,0.1217328,82222.0,82221.0,0.1873939]
[1744365041526,0.1543328,82222.0,82221.0,0.1873939]
[1744365042327,0.1217328,82222.0,82221.0,0.1873939]
[1744365043634,0.1543328,82222.0,82221.0,0.1873939]
[1744365048432,0.1892328,82222.0,82221.0,0.1873939]
[1744365048740,0.2238328,82222.0,82221.0,0.1873939]
[1744365048951,0.2238328,82222.0,82221.0,0.1216939]
[1744365049642,0.2238328,82222.0,82221.0,0.1902939]
[1744365050841,0.1892328,82222.0,82221.0,0.1902939]
[1744365051042,0.1891928,82222.0,82221.0,0.1902939]
[1744365051233,0.1892328,82222.0,82221.0,0.1902939]
[1744365053040,0.1892328,82222.0,82221.0,0.5510939]
[1744365053437,0.2240328,82222.0,82221.0,0.5510939]
[1744365054839,0.2240328,82222.0,82221.0,0.4824939]
[1744365056947,0.3080328,82222.0,82221.0,0.4824939]
[1744365057139,0.2382928,82222.0,82221.0,0.5153939]
[1744365057445,0.1542928,82222.0,82221.0,0.5153939]
[1744365057837,0.1543328,82222.0,82221.0,0.5153939]
[1744365058037,0.1542928,82222.0,82221.0,0.5153939]
[1744365058246,0.1543328,82222.0,82221.0,0.5153939]
[1744365059747,0.1889328,82222.0,82221.0,0.5153939]
[1744365060848,0.2729328,82222.0,82221.0,0.5153939]
[1744365062949,0.1889328,82222.0,82221.0,0.5153939]
[1744365063139,0.03264,82222.0,82221.0,0.5153939]
[1744365063343,4e-05,82222.0,82221.0,0.5494939]
[1744365063542,0.084,82230.0,82229.0,0.1216821]
[1744365063847,0.23983461,82230.0,82229.0,0.4824821]
[1744365064347,0.23983461,82230.0,82229.0,0.5501821]
[1744365071954,0.11815401,82230.0,82229.0,0.5163821]
[1744365072252,0.00018235,82231.0,82230.0,0.1216806]
[1744365072459,0.00018235,82231.0,82230.0,0.2219806]
[1744365072760,0.00022235,82231.0,82230.0,0.6301806]
[1744365073057,0.0004,82242.0,82239.0,0.0608329]
[1744365073252,0.1220631,82242.0,82241.0,0.4824643]
[1744365073458,0.0004,82242.0,82241.0,0.4824643]
[1744365073761,0.0004,82242.0,82241.0,0.5496643]
[1744365073955,0.1220628,82242.0,82241.0,0.5496643]
[1744365074858,0.1221028,82242.0,82241.0,0.5496643]
[1744365081056,0.00044,82242.0,82241.0,0.5496643]
[1744365081359,0.1221028,82242.0,82241.0,0.5496643]
[1744365081663,0.00044,82242.0,82241.0,0.5496643]
[1744365082255,0.03484,82242.0,82241.0,0.5496643]
[1744365082858,0.1221028,82242.0,82241.0,0.5496643]
[1744365083260,0.00044,82242.0,82241.0,0.5496643]
[1744365084056,0.1221028,82242.0,82241.0,0.5496643]
[1744365084460,0.00044,82242.0,82241.0,0.5496643]
[1744365084663,0.1221028,82242.0,82241.0,0.5496643]
[1744365084862,0.00044,82242.0,82241.0,0.5496643]
[1744365087063,0.1221028,82242.0,82241.0,0.5496643]
[1744365088568,0.1221028,82242.0,82241.0,0.5150643]
[1744365088774,0.1221028,82242.0,82241.0,0.4824643]
[1744365095966,0.1221028,82242.0,82241.0,0.5152643]
[1744365098377,0.1221028,82242.0,82241.0,0.4824643]
[1744365099388,0.1221028,82242.0,82223.0,0.57665766]
[1744365099574,0.0608401,82231.0,82228.0,0.3608]
[1744365099889,0.1216821,82229.0,82228.0,0.3608]
[1744365100673,0.1533821,82229.0,82228.0,0.3608]
[1744365101276,0.1216895,82224.0,82223.0,0.21585766]
[1744365102178,0.1216969,82219.0,82218.0,0.00018235]
[1744365102477,0.1216998,82217.0,82200.0,0.2217235]
[1744365102676,0.1217146,82207.0,82206.0,0.3608]
[1744365106273,0.0940571,82208.0,82204.0,0.21516896]
[1744365106576,9.842e-05,82228.0,82207.0,0.3608]
[1744365106892,9.842e-05,82228.0,82227.0,0.482485]
[1744365107077,0.1216836,82228.0,82227.0,0.482485]
[1744365107382,0.1217236,82228.0,82227.0,0.549985]
[1744365107982,4e-05,82228.0,82227.0,0.549985]
[1744365108574,0.1216733,82235.0,82234.0,0.1216732]
[1744365108877,0.1216733,82235.0,82234.0,0.4824732]
[1744365109276,0.1564733,82235.0,82234.0,0.4824732]
[1744365109476,0.1564733,82235.0,82234.0,0.5498732]
[1744365110276,0.1216733,82235.0,82234.0,0.5498732]
[1744365112278,0.00018247,82236.0,82235.0,0.1216732]
[1744365112482,0.12185417,82236.0,82235.0,0.1216732]
[1744365112681,0.12185417,82236.0,82235.0,0.1908732]
[1744365113175,0.00018247,82236.0,82235.0,0.1908732]
[1744365113576,0.0338,82253.0,82241.0,0.1216643]
[1744365113782,0.1216488,82252.0,82251.0,0.1216481]
[1744365113985,0.12172171,82252.0,82251.0,0.4824481]
[1744365114186,0.1216488,82252.0,82251.0,0.4824481]
[1744365114393,0.1216888,82252.0,82251.0,0.4824481]
[1744365114688,0.1216389,82259.0,82258.0,0.1216392]
[1744365115279,0.1216392,82258.0,82257.0,0.0347]
[1744365115480,0.1541392,82258.0,82257.0,0.0347]
[1744365115777,0.00018228,82260.0,82259.0,0.1216377]
[1744365116390,0.00022228,82260.0,82259.0,0.1216377]
[1744365116596,0.0004,82266.0,82265.0,0.1216288]
[1744365116785,0.0004,82266.0,82265.0,0.4824288]
[1744365117092,0.0607986,82287.0,82280.0,0.0608032]
[1744365117385,0.2099213,82284.0,82283.0,0.4824022]
[1744365118082,0.1216013,82284.0,82283.0,0.4824022]
[1744365118282,0.2099613,82284.0,82283.0,0.4824022]
[1744365118484,0.08836,82284.0,82283.0,0.4824022]
[1744365118780,0.0607975,82288.0,82287.0,0.1823909]
[1744365118981,0.1491175,82288.0,82287.0,0.2138909]
[1744365119388,0.0607975,82288.0,82287.0,0.2138909]
[1744365119589,0.1491175,82288.0,82287.0,0.2138909]
[1744365120490,0.0607975,82288.0,82287.0,0.2138909]
[1744365121388,0.1216007,82284.0,82283.0,0.3608]
[1744365121690,0.1216007,82284.0,82283.0,0.4824022]
[1744365122094,0.2099207,82284.0,82283.0,0.3608]
[1744365122295,0.1216007,82284.0,82283.0,0.4824022]
[1744365122486,0.2098807,82284.0,82283.0,0.4824022]
[1744365122790,0.1216407,82284.0,82283.0,0.4824022]
[1744365123095,0.2099207,82284.0,82283.0,0.4824022]
[1744365123793,0.1216407,82284.0,82283.0,0.4824022]
[1744365124094,0.2098807,82284.0,82283.0,0.4824022]
[1744365124284,0.2099207,82284.0,82283.0,0.4824022]
[1744365125292,0.08832,82284.0,82283.0,0.4824022]
[1744365126588,4e-05,82284.0,82283.0,0.4824022]
[1744365126788,0.08832,82284.0,82283.0,0.4824022]
[1744365126989,0.2099207,82284.0,82283.0,0.4824022]
[1744365129692,0.2099207,82284.0,82283.0,0.3608]
[1744365129987,0.1858407,82284.0,82283.0,0.3608]
[1744365130185,0.2741207,82284.0,82283.0,0.3608]
[1744365131200,0.2741207,82284.0,82283.0,0.4824022]
[1744365134695,0.2741207,82284.0,82283.0,0.5171022]
[1744365134901,0.2099207,82284.0,82283.0,0.5171022]
[1744365135089,0.08828,82284.0,82283.0,0.5171022]
[1744365135295,0.1219919,82290.0,82289.0,0.1215934]
[1744365135489,0.2102719,82290.0,82289.0,0.1215934]
[1744365136004,0.2103119,82290.0,82289.0,0.1215934]
[1744365136205,0.2103119,82290.0,82289.0,0.1549934]
[1744365136413,0.2103119,82290.0,82289.0,0.1890934]
[1744365139697,0.1220319,82290.0,82289.0,0.1890934]
[1744365140100,0.2096719,82290.0,82289.0,0.1890934]
[1744365140302,0.1220319,82290.0,82289.0,0.1890934]
[1744365140998,0.2096719,82290.0,82289.0,0.1890934]
[1744365141505,0.1220319,82290.0,82289.0,0.1890934]
[1744365141704,0.00044,82290.0,82289.0,0.1890934]
[1744365141997,0.0004,82290.0,82289.0,0.1890934]
[1744365142202,0.1219919,82290.0,82289.0,0.1890934]
[1744365142500,0.1220319,82290.0,82289.0,0.1890934]
[1744365142804,0.00044,82290.0,82289.0,0.1890934]
[1744365143701,0.0004,82290.0,82289.0,0.1890934]
[1744365144503,0.08764,82296.0,82295.0,0.1215845]
[1744365144698,0.0607856,82304.0,82303.0,0.1215727]
[1744365144905,0.1484256,82304.0,82303.0,0.4823727]
[1744365145301,0.1484656,82304.0,82303.0,0.4823727]
[1744365145509,0.1484656,82304.0,82303.0,0.5491727]
[1744365145897,0.0608256,82304.0,82303.0,0.5491727]
[1744365146502,0.1483856,82304.0,82303.0,0.5491727]
[1744365146807,0.1484256,82304.0,82303.0,0.5491727]
[1744365148208,0.0608256,82304.0,82303.0,0.5491727]
[1744365149604,0.1273256,82304.0,82303.0,0.5491727]
[1744365151410,0.0608256,82304.0,82303.0,0.5491727]
[1744365153312,0.1267256,82304.0,82303.0,0.5143727]
[1744365164717,0.0608256,82304.0,82303.0,0.5143727]
[1744365165119,0.0607856,82304.0,82303.0,0.5143727]
[1744365165321,0.0608256,82304.0,82303.0,0.5143727]
[1744365166614,0.0004,82314.0,82313.0,0.1215579]
[1744365166824,0.00049842,82314.0,82313.0,0.4823579]
[1744365167022,0.0004,82314.0,82313.0,0.4823579]
[1744365167212,0.00044,82314.0,82313.0,0.4823579]
[1744365167408,7.291e-05,82321.0,82315.0,0.0607771]
[1744365167707,0.1215358,82328.0,82327.0,0.1215358]
[1744365167912,0.2430577,82335.0,82334.0,0.1215269]
[1744365168121,0.1219223,82338.0,82337.0,0.1215225]
[1744365168813,0.1219623,82338.0,82337.0,0.1215225]
[1744365169216,0.121524,82336.0,82335.0,0.0337]
[1744365169819,0.189324,82336.0,82335.0,0.0337]
[1744365170020,0.0612011,82338.0,82335.0,0.0337]
[1744365170219,0.0612011,82338.0,82337.0,0.1215225]
[1744365170614,0.0611611,82338.0,82337.0,0.1215225]
[1744365170821,0.121524,82336.0,82335.0,0.1872249]
[1744365171820,0.00044,82338.0,82337.0,0.1215225]
[1744365172121,0.0004,82338.0,82337.0,0.1215225]
[1744365172322,0.00044,82338.0,82337.0,0.1215225]
[1744365174518,0.00044,82338.0,82335.0,0.1552248]
[1744365174519,0.121524,82336.0,82335.0,0.1552248]
[1744365174926,0.121524,82336.0,82335.0,0.0337]
[1744365175128,0.1215254,82335.0,82334.0,0.3608]
[1744365175324,0.1883254,82335.0,82334.0,0.3608]
[1744365176525,0.1883254,82335.0,82334.0,0.4823269]
[1744365176925,0.0607619,82337.0,82336.0,0.121524]
[1744365177328,0.0608019,82337.0,82336.0,0.121524]
[1744365178130,0.0607619,82337.0,82336.0,0.121524]
[1744365178424,4e-05,82337.0,82336.0,0.121524]
[1744365179124,0.0004,82338.0,82337.0,0.1215225]
[1744365180322,0.00044,82338.0,82337.0,0.1215225]
[1744365181118,0.0004,82338.0,82337.0,0.1215225]
[1744365181423,0.00044,82338.0,82337.0,0.1215225]
[1744365181936,5.401e-05,82348.0,82347.0,0.1215077]
[1744365182229,0.01,82350.0,82349.0,0.1215048]
[1744365182530,0.01,82350.0,82349.0,0.4823048]
[1744365183129,0.1315033,82350.0,82349.0,0.4823048]
[1744365183720,0.01,82350.0,82349.0,0.4823048]
[1744365185629,0.1315033,82350.0,82349.0,0.4823048]
[1744365185831,0.0759,82350.0,82349.0,0.4823048]
[1744365187833,0.0759,82350.0,82349.0,0.8431048]
[1744365189441,0.0004,82362.0,82360.0,0.1214885]
[1744365189626,0.1555871,82361.0,82360.0,0.4822885]
[1744365189829,0.00047291,82362.0,82361.0,0.1214871]
[1744365190027,0.00817268,82380.0,82373.0,0.0607342]
[1744365190227,0.1214635,82377.0,82376.0,0.0607318]
[1744365190630,0.1214664,82375.0,82374.0,0.0332]
[1744365190935,0.1214753,82369.0,82368.0,0.00018212]
[1744365191835,0.1871753,82369.0,82368.0,0.00018212]
[1744365192630,0.0607396,82367.0,82354.0,0.182245]
[1744365192834,0.1214944,82356.0,82355.0,0.216536]
[1744365193027,0.1214944,82356.0,82355.0,0.2772836]
[1744365193531,0.1215344,82356.0,82355.0,0.2772836]
[1744365193725,0.1215344,82356.0,82355.0,0.3114836]
[1744365194132,0.1893344,82356.0,82355.0,0.3114836]
[1744365194736,0.1893344,82356.0,82355.0,0.2772836]
[1744365195029,0.1215344,82356.0,82355.0,0.2772836]
[1744365195230,4e-05,82356.0,82355.0,0.3114836]
[1744365196136,0.00018096,82364.0,82363.0,0.1214841]
[1744365196339,0.12166356,82364.0,82363.0,0.4822841]
[1744365196839,0.12170356,82364.0,82363.0,0.4822841]
[1744365197038,0.12166356,82364.0,82363.0,0.5499841]
[1744365197240,0.12170356,82364.0,82363.0,0.5499841]
[1744365197732,0.00022096,82364.0,82363.0,0.5499841]
[1744365197934,0.1214727,82371.0,82370.0,0.1214738]
[1744365198130,0.1214727,82371.0,82370.0,0.4822738]
[1744365198332,0.1215127,82371.0,82370.0,0.4822738]
[1744365198737,0.1215127,82371.0,82370.0,0.5499738]
[1744365200646,0.1215127,82371.0,82370.0,0.5592159]
[1744365201229,4e-05,82371.0,82370.0,0.5592159]
[1744365201641,0.0607303,82379.0,82378.0,0.121462]
[1744365201833,0.00817268,82380.0,82379.0,0.1214605]
[1744365202029,0.12963168,82380.0,82379.0,0.1214605]
[1744365202238,0.00817268,82380.0,82379.0,0.1214605]
[1744365202539,0.3608,82396.0,82385.0,0.1214517]
[1744365202731,5.401e-05,82392.0,82385.0,0.4822517]
[1744365202929,0.1218502,82386.0,82385.0,0.4822517]
[1744365203334,0.1214546,82384.0,82383.0,0.1214535]
[1744365203537,0.1252265,82385.0,82384.0,0.1214531]
[1744365203844,0.0607265,82385.0,82384.0,0.1214531]
[1744365204041,0.1252265,82385.0,82384.0,0.1214531]
[1744365204341,0.1252665,82385.0,82384.0,0.1214531]
[1744365204742,0.1214546,82383.0,82382.0,0.0607277]
[1744365205146,0.1214576,82381.0,82380.0,0.153159]
[1744365205643,0.1214576,82381.0,82380.0,0.0317]
[1744365205830,0.1214605,82379.0,82378.0,0.3608]
[1744365206036,0.1214605,82379.0,82378.0,0.482262]
[1744365206438,0.1884605,82379.0,82378.0,0.482262]
[1744365206642,0.1822215,82385.0,82384.0,0.1214531]
[1744365206945,0.0607663,82385.0,82384.0,0.1214531]
[1744365207145,0.1277263,82385.0,82384.0,0.1214531]
[1744365207935,0.1214546,82383.0,82382.0,0.1541554]
[1744365208241,0.1214605,82379.0,82378.0,0.4215309]
[1744365209149,0.1534605,82379.0,82378.0,0.4215309]
[1744365210347,0.1534605,82379.0,82378.0,0.0607309]
[1744365210545,0.1214694,82373.0,82372.0,0.3608]
[1744365210845,0.1214694,82373.0,82372.0,0.4822708]
[1744365211438,0.1879694,82373.0,82372.0,0.4822708]
[1744365212847,0.1559694,82373.0,82372.0,0.4822708]
[1744365213260,0.1214694,82373.0,82372.0,0.4822708]
[1744365215741,0.1214694,82373.0,82372.0,0.5155708]
[1744365217253,0.1214679,82374.0,82373.0,0.1214694]
[1744365217447,0.1214679,82374.0,82373.0,0.1547694]
[1744365217645,0.0607273,82383.0,82378.0,0.060731]
[1744365217946,0.1214576,82381.0,82380.0,0.1214576]
[1744365218148,0.1214576,82381.0,82380.0,0.5153576]
[1744365218346,4e-05,82381.0,82380.0,0.5153576]
[1744365218543,0.0004,82386.0,82385.0,0.1214517]
[1744365218950,0.0004,82386.0,82385.0,0.4822517]
[1744365219744,0.00044,82386.0,82385.0,0.4822517]
[1744365219945,0.00044,82386.0,82385.0,0.5166517]
[1744365220639,0.0004,82386.0,82385.0,0.5166517]
[1744365220843,0.00044,82386.0,82385.0,0.5166517]
[1744365221548,0.0004,82386.0,82385.0,0.5166517]
[1744365221748,0.00044,82386.0,82385.0,0.5166517]
[1744365222554,0.0004,82386.0,82385.0,0.5166517]
[1744365222755,0.00044,82386.0,82385.0,0.5166517]
[1744365223554,0.00044,82386.0,82385.0,0.9248517]
[1744365225357,0.06654,82386.0,82385.0,0.9248517]
[1744365225749,0.00044,82386.0,82385.0,0.9248517]
[1744365226257,0.1218902,82386.0,82385.0,0.9248517]
[1744365226456,0.1218902,82386.0,82385.0,0.769]
[1744365226753,0.1218902,82386.0,82385.0,0.8904517]
[1744365226964,0.1887902,82386.0,82385.0,0.8904517]
[1744365227159,0.1887902,82386.0,82385.0,0.5296517]
[1744365229354,0.1887902,82386.0,82385.0,0.1214517]
[1744365230146,0.06734,82386.0,82385.0,0.4822517]
[1744365230349,0.03304,82386.0,82385.0,0.5149517]
[1744365230655,0.1544502,82386.0,82385.0,0.5149517]
[1744365230962,0.1544902,82386.0,82385.0,0.5149517]
[1744365231661,0.0004,82386.0,82385.0,0.5149517]
[1744365232055,0.00044,82386.0,82385.0,0.5149517]
[1744365233865,5.401e-05,82393.0,82392.0,0.1214414]
[1744365234166,0.31812338,82400.0,82399.0,0.121431]
[1744365234366,0.31812338,82400.0,82399.0,0.482231]
[1744365235065,0.31812338,82400.0,82399.0,0.549231]
[1744365235264,0.31816338,82400.0,82399.0,0.549231]
[1744365236066,0.31812338,82400.0,82399.0,0.549231]
[1744365236367,0.31816338,82400.0,82399.0,0.549231]
[1744365237163,0.10004,82400.0,82399.0,0.549231]
[1744365240059,0.1,82400.0,82399.0,0.549231]
[1744365240259,0.10004,82400.0,82399.0,0.549231]
[1744365242270,0.2214696,82400.0,82399.0,0.515531]
[1744365242771,0.10004,82400.0,82399.0,0.515531]
[1744365242972,0.2214696,82400.0,82399.0,0.515531]
[1744365243173,0.2909696,82400.0,82399.0,0.515531]
[1744365245475,0.2909696,82400.0,82399.0,0.482231]
[1744365248878,0.2909696,82400.0,82399.0,0.3608]
[1744365249077,0.2909696,82400.0,82399.0,0.482231]
[1744365250081,0.16954,82400.0,82399.0,0.482231]
[1744365250380,0.16954,82400.0,82399.0,0.516231]
[1744365250686,0.1695,82400.0,82399.0,0.516231]
[1744365250888,0.16954,82400.0,82399.0,0.516231]
[1744365251788,0.13444,82400.0,82399.0,0.516231]
[1744365252588,0.10004,82400.0,82399.0,0.516231]
[1744365253690,0.0004,82410.0,82404.0,0.0607115]
[1744365253889,0.0004,82410.0,82409.0,0.4822163]
[1744365254282,0.00044,82410.0,82409.0,0.4822163]
[1744365254781,0.00044,82410.0,82409.0,0.5495163]
[1744365256689,0.21812338,82414.0,82413.0,0.1214104]
[1744365256985,0.21817739,82414.0,82413.0,0.1214104]
[1744365257188,0.21812338,82414.0,82413.0,0.1214104]
[1744365257386,0.21816338,82414.0,82413.0,0.1214104]
[1744365257592,0.21816338,82414.0,82413.0,0.19646824]
[1744365258187,4e-05,82414.0,82413.0,0.19646824]
[1744365258987,0.1552053,82417.0,82413.0,0.19646824]
[1744365259187,0.1552045,82417.0,82416.0,0.482206]
[1744365259393,0.0338,82417.0,82416.0,0.482206]
[1744365260090,5.401e-05,82418.0,82417.0,0.1214045]
[1744365260291,0.12145701,82418.0,82417.0,0.1214045]
[1744365260494,0.18905701,82418.0,82417.0,0.1869045]
[1744365261589,0.18905701,82418.0,82417.0,0.0655]
[1744365261798,0.18905701,82418.0,82417.0,0.1532045]
[1744365262389,0.121403,82418.0,82417.0,0.213906]
[1744365262589,0.121403,82418.0,82417.0,0.248606]
[1744365263697,0.121403,82418.0,82417.0,0.1272015]
[1744365264289,0.121403,82418.0,82417.0,0.0318]
[1744365264494,0.121403,82418.0,82417.0,0.1532045]
[1744365265497,0.121403,82418.0,82417.0,0.0318]
[1744365265894,0.1214045,82417.0,82416.0,0.3608]
[1744365266400,0.1804045,82417.0,82416.0,0.3608]
[1744365266796,0.1214045,82417.0,82416.0,0.482206]
[1744365267298,0.0273,82418.0,82417.0,0.1214045]
[1744365267505,0.0341,82420.0,82419.0,0.1214016]
[1744365268897,0.1555001,82420.0,82419.0,0.1214016]
[1744365269202,0.1214001,82420.0,82419.0,0.1214016]
[1744365269605,9.842e-05,82422.0,82421.0,0.1213986]
[1744365269994,0.21812338,82426.0,82425.0,0.1213927]
[1744365270191,0.21812338,82426.0,82425.0,0.4821927]
[1744365270908,0.21812338,82426.0,82425.0,0.5477927]
[1744365271294,0.21816338,82426.0,82425.0,0.5477927]
[1744365273600,0.21812338,82426.0,82425.0,0.5477927]
[1744365273800,0.21812338,82427.0,82426.0,0.1213913]
[1744365274000,0.21812338,82427.0,82426.0,0.1855913]
[1744365274306,0.21816338,82427.0,82426.0,0.1855913]
[1744365275302,0.00045401,82434.0,82433.0,0.121381]
[1744365275507,0.00045401,82434.0,82433.0,0.482181]
[1744365275898,9.842e-05,82441.0,82439.0,0.1213706]
[1744365275899,0.0606854,82440.0,82439.0,0.1213706]
[1744365276101,0.0606854,82440.0,82439.0,0.0328]
[1744365276301,0.0607254,82440.0,82439.0,0.0328]
[1744365276912,0.0880254,82440.0,82439.0,0.0328]
[1744365277112,0.1217254,82440.0,82439.0,0.1541721]
[1744365277908,0.1213721,82439.0,82438.0,0.1213725]
[1744365278312,0.1823721,82439.0,82438.0,0.1213725]
[1744365278500,0.1213721,82439.0,82438.0,0.1213725]
[1744365279713,0.1213703,82441.0,82440.0,0.1820523]
[1744365279906,0.1213703,82441.0,82440.0,0.2473523]
[1744365280313,0.1214103,82441.0,82440.0,0.2473523]
[1744365281308,4e-05,82441.0,82440.0,0.1259846]
[1744365281520,0.1214092,82441.0,82440.0,0.1259846]
[1744365281809,0.1214092,82441.0,82440.0,0.0653]
[1744365282313,0.1214092,82441.0,82440.0,0.1866706]
[1744365282611,0.1214092,82441.0,82440.0,0.0653]
[1744365283008,0.1214092,82441.0,82440.0,0.1866706]
[1744365283199,0.1214092,82441.0,82440.0,0.0333]
[1744365283809,0.1214092,82441.0,82440.0,0.1546706]
[1744365286216,0.1214092,82441.0,82440.0,0.0333]
[1744365287109,0.1214092,82441.0,82440.0,0.1546706]
[1744365291818,0.1214092,82441.0,82440.0,0.1888706]
[1744365292018,0.1492092,82441.0,82440.0,0.1888706]
[1744365293419,0.1214092,82441.0,82440.0,0.1888706]
[1744365295124,4e-05,82441.0,82440.0,0.1888706]
[1744365295718,0.12159019,82448.0,82447.0,0.1213603]
[1744365295919,0.00036416,82448.0,82447.0,0.4821603]
[1744365296220,0.00017287,82448.0,82447.0,0.5802603]
[1744365296420,0.1213563,82450.0,82449.0,0.1213574]
[1744365297112,0.1213963,82450.0,82449.0,0.1213574]
[1744365297515,4e-05,82450.0,82449.0,0.13065948]
[1744365297720,0.1213959,82450.0,82449.0,0.13065948]
[1744365299813,4e-05,82450.0,82449.0,0.13065948]
[1744365300020,0.1213559,82450.0,82449.0,0.13065948]
[1744365300222,0.1213959,82450.0,82449.0,0.13065948]
[1744365300815,4e-05,82450.0,82449.0,0.13065948]
[1744365301015,0.02059004,82451.0,82450.0,0.1213559]
[1744365301521,0.02059004,82451.0,82450.0,0.1859559]
[1744365301923,0.14194454,82451.0,82450.0,0.1859559]
[1744365302120,0.14194454,82451.0,82442.0,0.18222761]
[1744365302121,0.1213662,82443.0,82442.0,0.18222761]
[1744365302926,0.1213662,82443.0,82442.0,0.13462208]
[1744365303418,0.1213662,82443.0,82442.0,0.16752208]
[1744365304017,0.1213662,82443.0,82442.0,0.00018201]
[1744365304622,0.1213662,82443.0,82442.0,0.12154971]
[1744365305044,0.1214062,82443.0,82442.0,0.12154971]
[1744365305423,0.1214062,82443.0,82442.0,0.18884971]
[1744365305630,0.1213662,82443.0,82442.0,0.18884971]
[1744365305928,0.1214062,82443.0,82442.0,0.18884971]
[1744365311930,0.1214062,82443.0,82442.0,0.03458201]
[1744365312233,0.1214062,82443.0,82442.0,0.00018201]
[1744365312625,0.1533062,82443.0,82442.0,0.00018201]
[1744365314027,0.1532662,82443.0,82442.0,0.00018201]
[1744365314330,0.1214062,82443.0,82442.0,0.15394971]
[1744365314536,0.1213662,82443.0,82442.0,0.18864971]
[1744365314831,0.1214062,82443.0,82442.0,0.18864971]
[1744365316132,0.1213662,82443.0,82442.0,0.18864971]
[1744365316333,0.1214062,82443.0,82442.0,0.18864971]
[1744365317331,4e-05,82443.0,82442.0,0.18864971]
[1744365317528,0.0606798,82448.0,82447.0,0.2427144]
[1744365322039,0.0606798,82448.0,82447.0,0.6035144]
[1744365323737,9.842e-05,82459.0,82455.0,0.1213486]
[1744365324030,0.1213368,82463.0,82457.0,0.1213456]
[1744365324228,0.0606669,82466.0,82457.0,0.1213456]
[1744365324229,0.1213359,82464.0,82457.0,0.1213456]
[1744365324428,0.31515799,82465.0,82457.0,0.1213456]
[1744365324734,0.1213392,82462.0,82457.0,0.1213456]
[1744365324934,0.25449059,82465.0,82457.0,0.1853456]
[1744365325236,0.00044,82458.0,82457.0,0.1853456]
[1744365328847,0.1217842,82458.0,82457.0,0.1853456]
[1744365329041,0.00044,82458.0,82457.0,0.1853456]
[1744365330045,0.1217842,82458.0,82457.0,0.1213456]